[Event "Titled Tuesday Blitz December 27 Late 2022"]
[White "Orzech, Dominik"]
[Black "Kozlov, Gennady"]
[WhiteFideId "1115065"]
[BlackFideId "4191668"]
[WhiteElo "2308"]
[BlackElo "2401"]
[Result "1/2-1/2"]
[Round "04"]
[TimeControl "180+2"]
[Date "2022.12.27"]
[WhiteClock "0:00:49"]
[BlackClock "0:01:10"]

1. d4 {[%clk 0:03:00]}  e6 {[%clk 0:02:59]} 2. Nf3 {[%clk 0:02:58]}  b6 {[%clk 0:02:59]} 3. e4 {[%clk 0:02:56]}  Bb7 {[%clk 0:02:59]} 4. Bd3 {[%clk 0:02:55]}  d5 {[%clk 0:03:00]} 5. exd5 {[%clk 0:02:53]}  Bxd5 {[%clk 0:02:58]} 6. Nc3 {[%clk 0:02:49]}  Bb7 {[%clk 0:02:58]} 7. O-O {[%clk 0:02:47]}  Nf6 {[%clk 0:02:58]} 8. Re1 {[%clk 0:02:45]}  Be7 {[%clk 0:02:58]} 9. Bg5 {[%clk 0:02:38]}  O-O {[%clk 0:02:58]} 10. Qe2 {[%clk 0:02:36]}  h6 {[%clk 0:02:57]} 11. Bh4 {[%clk 0:02:33]}  c5 {[%clk 0:02:57]} 12. Rad1 {[%clk 0:02:29]}  Nbd7 {[%clk 0:02:56]} 13. dxc5 {[%clk 0:02:23]}  Bxc5 {[%clk 0:02:54]} 14. Ne4 {[%clk 0:02:20]}  Be7 {[%clk 0:02:51]} 15. Bxf6 {[%clk 0:02:09]}  Bxf6 {[%clk 0:02:50]} 16. Bb5 {[%clk 0:02:09]}  Bxe4 {[%clk 0:02:06]} 17. Qxe4 {[%clk 0:02:05]}  Nc5 {[%clk 0:02:04]} 18. Rxd8 {[%clk 0:02:04]}  Nxe4 {[%clk 0:02:05]} 19. Rxf8+ {[%clk 0:02:03]}  Kxf8 {[%clk 0:02:05]} 20. Rxe4 {[%clk 0:02:03]}  Bxb2 {[%clk 0:02:05]} 21. Kf1 {[%clk 0:02:00]}  a6 {[%clk 0:02:03]} 22. Ra4 {[%clk 0:01:57]}  Rc8 {[%clk 0:01:55]} 23. Bd3 {[%clk 0:01:46]}  a5 {[%clk 0:01:52]} 24. Rc4 {[%clk 0:01:46]}  Rb8 {[%clk 0:01:51]} 25. Rc7 {[%clk 0:01:45]}  b5 {[%clk 0:01:49]} 26. Ke2 {[%clk 0:01:44]}  b4 {[%clk 0:01:48]} 27. h4 {[%clk 0:01:42]}  a4 {[%clk 0:01:49]} 28. g4 {[%clk 0:01:41]}  b3 {[%clk 0:01:49]} 29. axb3 {[%clk 0:01:36]}  axb3 {[%clk 0:01:50]} 30. cxb3 {[%clk 0:01:37]}  Rxb3 {[%clk 0:01:50]} 31. g5 {[%clk 0:01:37]}  Ba1 {[%clk 0:01:46]} 32. h5 {[%clk 0:01:32]}  Rb2+ {[%clk 0:01:45]} 33. Ke3 {[%clk 0:01:31]}  hxg5 {[%clk 0:01:34]} 34. Nxg5 {[%clk 0:01:30]}  Rb8 {[%clk 0:01:27]} 35. Rxf7+ {[%clk 0:01:29]}  Kg8 {[%clk 0:01:28]} 36. Bh7+ {[%clk 0:01:28]}  Kh8 {[%clk 0:01:28]} 37. Bg6 {[%clk 0:01:26]}  Rb3+ {[%clk 0:01:22]} 38. Ke2 {[%clk 0:01:23]}  Rb2+ {[%clk 0:01:21]} 39. Kf1 {[%clk 0:01:22]}  Rb8 {[%clk 0:01:21]} 40. Nxe6 {[%clk 0:01:20]}  Bf6 {[%clk 0:01:22]} 41. Rf8+ {[%clk 0:01:20]}  Rxf8 {[%clk 0:01:21]} 42. Nxf8 {[%clk 0:01:21]}  Kg8 {[%clk 0:01:21]} 43. Ne6 {[%clk 0:01:20]}  Kh8 {[%clk 0:01:20]} 44. Ke2 {[%clk 0:01:21]}  Kg8 {[%clk 0:01:21]} 45. Kd3 {[%clk 0:01:22]}  Kh8 {[%clk 0:01:22]} 46. Kc4 {[%clk 0:01:21]}  Kg8 {[%clk 0:01:23]} 47. Kd5 {[%clk 0:01:21]}  Kh8 {[%clk 0:01:23]} 48. Kd6 {[%clk 0:01:21]}  Kg8 {[%clk 0:01:24]} 49. Kd7 {[%clk 0:01:21]}  Bh4 {[%clk 0:01:24]} 50. f4 {[%clk 0:01:21]}  Bg3 {[%clk 0:01:23]} 51. Ke8 {[%clk 0:01:19]}  Bh2 {[%clk 0:01:23]} 52. f5 {[%clk 0:01:14]}  Be5 {[%clk 0:01:22]} 53. Ng5 {[%clk 0:01:12]}  Bf6 {[%clk 0:01:20]} 54. Bf7+ {[%clk 0:01:10]}  Kh8 {[%clk 0:01:20]} 55. Ne4 {[%clk 0:01:09]}  Bb2 {[%clk 0:01:18]} 56. Kf8 {[%clk 0:01:08]}  Kh7 {[%clk 0:01:17]} 57. Bg6+ {[%clk 0:01:05]}  Kh6 {[%clk 0:01:16]} 58. Kf7 {[%clk 0:01:06]}  Ba1 {[%clk 0:01:16]} 59. Nd6 {[%clk 0:01:05]}  Bb2 {[%clk 0:01:14]} 60. Nc4 {[%clk 0:01:05]}  Ba1 {[%clk 0:01:14]} 61. Ne3 {[%clk 0:01:04]}  Bb2 {[%clk 0:01:13]} 62. Nd5 {[%clk 0:01:02]}  Ba1 {[%clk 0:01:13]} 63. Ne7 {[%clk 0:01:02]}  Bb2 {[%clk 0:01:12]} 64. Ng8+ {[%clk 0:01:00]}  Kg5 {[%clk 0:01:12]} 65. Kf8 {[%clk 0:00:58]}  Ba1 {[%clk 0:01:12]} 66. Kf7 {[%clk 0:00:57]}  Bb2 {[%clk 0:01:12]} 67. Ne7 {[%clk 0:00:53]}  Kh6 {[%clk 0:01:10]} 68. Nd5 {[%clk 0:00:52]}  Ba1 {[%clk 0:01:10]} 69. Ne3 {[%clk 0:00:52]}  Bb2 {[%clk 0:01:10]} 70. Nd5 {[%clk 0:00:49]} 1/2-1/2


[Site "https://www.chess.com"]

[Event "Titled Tuesday Blitz December 27 Late 2022"]
[White "Osinenko, Anton"]
[Black "Yano, William Jorge Froes"]
[WhiteFideId "4158970"]
[BlackFideId "2112949"]
[WhiteElo "2203"]
[BlackElo "2045"]
[Result "1-0"]
[Round "04"]
[TimeControl "180+2"]
[Date "2022.12.27"]
[WhiteClock "0:00:35"]
[BlackClock "0:00:04"]

1. e4 {[%clk 0:02:59]}  e6 {[%clk 0:03:00]} 2. d4 {[%clk 0:02:57]}  d5 {[%clk 0:03:00]} 3. exd5 {[%clk 0:02:58]}  exd5 {[%clk 0:03:01]} 4. Bd3 {[%clk 0:02:58]}  Nc6 {[%clk 0:03:02]} 5. Ne2 {[%clk 0:02:58]}  Bd6 {[%clk 0:03:02]} 6. c3 {[%clk 0:02:58]}  Nge7 {[%clk 0:03:02]} 7. Qc2 {[%clk 0:02:57]}  Bg4 {[%clk 0:03:02]} 8. f3 {[%clk 0:02:57]}  Bh5 {[%clk 0:03:02]} 9. Bg5 {[%clk 0:02:57]}  f6 {[%clk 0:03:02]} 10. Bh4 {[%clk 0:02:57]}  Qd7 {[%clk 0:03:03]} 11. Nd2 {[%clk 0:02:56]}  Bf7 {[%clk 0:03:00]} 12. O-O-O {[%clk 0:02:54]}  a6 {[%clk 0:02:55]} 13. Rde1 {[%clk 0:02:47]}  Bg6 {[%clk 0:02:32]} 14. Ng3 {[%clk 0:02:35]}  O-O {[%clk 0:02:25]} 15. Ne2 {[%clk 0:02:20]}  b5 {[%clk 0:02:24]} 16. Bg3 {[%clk 0:02:17]}  Rfb8 {[%clk 0:02:14]} 17. Nf4 {[%clk 0:02:11]}  Bxf4 {[%clk 0:02:10]} 18. Bxf4 {[%clk 0:02:12]}  a5 {[%clk 0:02:10]} 19. Nb3 {[%clk 0:02:04]}  b4 {[%clk 0:02:07]} 20. Nc5 {[%clk 0:02:04]}  Qc8 {[%clk 0:02:05]} 21. h4 {[%clk 0:02:02]}  bxc3 {[%clk 0:01:55]} 22. bxc3 {[%clk 0:02:02]}  a4 {[%clk 0:01:46]} 23. h5 {[%clk 0:01:53]}  Bxd3 {[%clk 0:01:46]} 24. Qxd3 {[%clk 0:01:54]}  a3 {[%clk 0:01:47]} 25. h6 {[%clk 0:01:54]}  g6 {[%clk 0:01:29]} 26. Re2 {[%clk 0:01:48]}  Ra5 {[%clk 0:01:04]} 27. Rhe1 {[%clk 0:01:37]}  Kf7 {[%clk 0:00:51]} 28. Kd2 {[%clk 0:01:06]}  Rb2+ {[%clk 0:00:50]} 29. Ke3 {[%clk 0:01:07]}  Qf5 {[%clk 0:00:32]} 30. g4 {[%clk 0:00:58]}  Qxd3+ {[%clk 0:00:16]} 31. Nxd3 {[%clk 0:00:59]}  Ra7 {[%clk 0:00:15]} 32. Nxb2 {[%clk 0:00:58]}  axb2 {[%clk 0:00:14]} 33. Rxb2 {[%clk 0:00:59]}  g5 {[%clk 0:00:15]} 34. Bg3 {[%clk 0:00:59]}  Ra3 {[%clk 0:00:14]} 35. Kd3 {[%clk 0:00:56]}  Na5 {[%clk 0:00:13]} 36. Ree2 {[%clk 0:00:49]}  Nc4 {[%clk 0:00:13]} 37. Rb7 {[%clk 0:00:49]}  c6 {[%clk 0:00:10]} 38. Rbxe7+ {[%clk 0:00:47]}  Kg6 {[%clk 0:00:10]} 39. R7e6 {[%clk 0:00:44]}  Ra6 {[%clk 0:00:07]} 40. Be5 {[%clk 0:00:42]}  Kxh6 {[%clk 0:00:03]} 41. Rxf6+ {[%clk 0:00:39]}  Kg7 {[%clk 0:00:04]} 42. Rf5+ {[%clk 0:00:38]}  Kg6 {[%clk 0:00:03]} 43. Rh2 {[%clk 0:00:35]}  h6 {[%clk 0:00:02]} 44. Rf6+ {[%clk 0:00:35]}  Kg7 {[%clk 0:00:03]} 45. Rfxh6+ {[%clk 0:00:35]}  Kf8 {[%clk 0:00:03]} 46. Rh8+ {[%clk 0:00:34]}  Ke7 {[%clk 0:00:03]} 47. R2h7+ {[%clk 0:00:35]}  Ke6 {[%clk 0:00:04]} 48. Re8# {[%clk 0:00:35]} 1-0


[Site "https://www.chess.com"]

[Event "Titled Tuesday Blitz December 27 Late 2022"]
[White "Papayan, Oleg"]
[Black "Rose, Felix"]
[WhiteFideId "4193911"]
[BlackFideId "5105722"]
[WhiteElo "2253"]
[BlackElo "2091"]
[Result "1-0"]
[Round "04"]
[TimeControl "180+2"]
[Date "2022.12.27"]
[WhiteClock "0:00:05"]
[BlackClock "0:00:03"]

1. e4 {[%clk 0:03:00]}  e5 {[%clk 0:02:57]} 2. Nf3 {[%clk 0:02:59]}  Nc6 {[%clk 0:02:58]} 3. Bb5 {[%clk 0:02:58]}  a6 {[%clk 0:02:58]} 4. Bxc6 {[%clk 0:02:58]}  dxc6 {[%clk 0:02:58]} 5. O-O {[%clk 0:02:59]}  Qf6 {[%clk 0:02:57]} 6. d4 {[%clk 0:02:59]}  exd4 {[%clk 0:02:56]} 7. Bg5 {[%clk 0:02:59]}  Qd6 {[%clk 0:02:56]} 8. Nxd4 {[%clk 0:02:56]}  Bd7 {[%clk 0:02:52]} 9. Nc3 {[%clk 0:02:52]}  h6 {[%clk 0:02:50]} 10. Bh4 {[%clk 0:02:46]}  g5 {[%clk 0:02:31]} 11. Bg3 {[%clk 0:02:46]}  Qb4 {[%clk 0:02:31]} 12. a3 {[%clk 0:02:41]}  Qb6 {[%clk 0:02:20]} 13. Be5 {[%clk 0:02:14]}  f6 {[%clk 0:02:14]} 14. Qh5+ {[%clk 0:02:13]}  Kd8 {[%clk 0:02:10]} 15. Qf7 {[%clk 0:02:08]}  Be7 {[%clk 0:01:46]} 16. Qg7 {[%clk 0:01:18]}  fxe5 {[%clk 0:01:41]} 17. Qxh8 {[%clk 0:01:16]}  exd4 {[%clk 0:01:39]} 18. Qxg8+ {[%clk 0:01:15]}  Be8 {[%clk 0:01:39]} 19. Rad1 {[%clk 0:01:05]}  Kd7 {[%clk 0:01:25]} 20. Na4 {[%clk 0:00:49]}  Qb5 {[%clk 0:01:11]} 21. Rxd4+ {[%clk 0:00:48]}  Bd6 {[%clk 0:01:11]} 22. Qg7+ {[%clk 0:00:37]}  Kc8 {[%clk 0:01:07]} 23. Qh8 {[%clk 0:00:25]}  c5 {[%clk 0:01:01]} 24. Nc3 {[%clk 0:00:16]}  Qc6 {[%clk 0:00:54]} 25. Rd5 {[%clk 0:00:17]}  b6 {[%clk 0:00:50]} 26. e5 {[%clk 0:00:18]}  Be7 {[%clk 0:00:49]} 27. Qg7 {[%clk 0:00:15]}  Qe6 {[%clk 0:00:44]} 28. Qh8 {[%clk 0:00:13]}  Kb7 {[%clk 0:00:44]} 29. Qg7 {[%clk 0:00:09]}  Bc6 {[%clk 0:00:44]} 30. Rd3 {[%clk 0:00:09]}  Rg8 {[%clk 0:00:44]} 31. Qh7 {[%clk 0:00:08]}  Qxe5 {[%clk 0:00:41]} 32. f3 {[%clk 0:00:08]}  c4 {[%clk 0:00:40]} 33. Rdd1 {[%clk 0:00:07]}  Rg7 {[%clk 0:00:38]} 34. Qh8 {[%clk 0:00:06]}  Bf6 {[%clk 0:00:36]} 35. Qxh6 {[%clk 0:00:06]}  Qf4 {[%clk 0:00:31]} 36. Ne4 {[%clk 0:00:05]}  Bxb2 {[%clk 0:00:29]} 37. Qh5 {[%clk 0:00:04]}  g4 {[%clk 0:00:24]} 38. Qh4 {[%clk 0:00:03]}  Qe3+ {[%clk 0:00:23]} 39. Kh1 {[%clk 0:00:03]}  gxf3 {[%clk 0:00:23]} 40. gxf3 {[%clk 0:00:03]}  Qe2 {[%clk 0:00:16]} 41. Qf2 {[%clk 0:00:04]}  Qxf2 {[%clk 0:00:10]} 42. Rxf2 {[%clk 0:00:05]}  Rf7 {[%clk 0:00:09]} 43. Rdf1 {[%clk 0:00:04]}  Bd4 {[%clk 0:00:07]} 44. Re2 {[%clk 0:00:04]}  b5 {[%clk 0:00:05]} 45. h4 {[%clk 0:00:04]}  Rh7 {[%clk 0:00:05]} 46. Rh2 {[%clk 0:00:04]}  Be5 {[%clk 0:00:05]} 47. Rh3 {[%clk 0:00:04]}  Bd7 {[%clk 0:00:05]} 48. Ng5 {[%clk 0:00:05]}  Bxh3 {[%clk 0:00:04]} 49. Re1 {[%clk 0:00:03]}  Rxh4 {[%clk 0:00:04]} 50. Rxe5 {[%clk 0:00:02]}  Bd7+ {[%clk 0:00:02]} 51. Kg2 {[%clk 0:00:03]}  Bc6 {[%clk 0:00:02]} 52. Kg3 {[%clk 0:00:03]}  Rh1 {[%clk 0:00:02]} 53. f4 {[%clk 0:00:03]}  Rg1+ {[%clk 0:00:03]} 54. Kh4 {[%clk 0:00:04]}  a5 {[%clk 0:00:03]} 55. f5 {[%clk 0:00:04]}  b4 {[%clk 0:00:03]} 56. Rxa5 {[%clk 0:00:04]}  b3 {[%clk 0:00:03]} 57. cxb3 {[%clk 0:00:05]}  cxb3 {[%clk 0:00:04]} 58. f6 {[%clk 0:00:05]}  Rh1+ {[%clk 0:00:04]} 59. Kg4 {[%clk 0:00:05]}  Rf1 {[%clk 0:00:05]} 60. f7 {[%clk 0:00:04]}  b2 {[%clk 0:00:04]} 61. Rf5 {[%clk 0:00:05]}  Bd7 {[%clk 0:00:03]} 62. f8=Q {[%clk 0:00:05]}  Rxf5 {[%clk 0:00:04]} 63. Qb4+ {[%clk 0:00:05]}  Kc8 {[%clk 0:00:03]} 64. Kh4 {[%clk 0:00:04]}  Rf2 {[%clk 0:00:03]} 65. Ne4 {[%clk 0:00:03]}  Rh2+ {[%clk 0:00:03]} 66. Kg3 {[%clk 0:00:04]}  Rc2 {[%clk 0:00:01]} 67. Nf6 {[%clk 0:00:03]}  Bf5 {[%clk 0:00:02]} 68. Qf8+ {[%clk 0:00:04]}  Kb7 {[%clk 0:00:02]} 69. Qb4+ {[%clk 0:00:05]}  Kc8 {[%clk 0:00:03]} 70. Nd5 {[%clk 0:00:05]} 1-0


[Site "https://www.chess.com"]

[Event "Titled Tuesday Blitz December 27 Late 2022"]
[White "Pham, Khoi"]
[Black "Gubajdullin, Alexei"]
[WhiteFideId "1054988"]
[BlackFideId "4141202"]
[WhiteElo "2355"]
[BlackElo "2285"]
[Result "0-1"]
[Round "04"]
[TimeControl "180+2"]
[Date "2022.12.27"]
[WhiteClock "0:00:11"]
[BlackClock "0:01:22"]

1. c4 {[%clk 0:03:00]}  Nf6 {[%clk 0:02:59]} 2. Nc3 {[%clk 0:03:00]}  g6 {[%clk 0:02:59]} 3. e4 {[%clk 0:02:58]}  d6 {[%clk 0:02:58]} 4. d4 {[%clk 0:02:59]}  Bg7 {[%clk 0:02:58]} 5. h3 {[%clk 0:02:57]}  O-O {[%clk 0:02:58]} 6. Be3 {[%clk 0:02:58]}  Na6 {[%clk 0:02:58]} 7. g4 {[%clk 0:02:57]}  c5 {[%clk 0:02:58]} 8. Nf3 {[%clk 0:02:56]}  cxd4 {[%clk 0:02:49]} 9. Nxd4 {[%clk 0:02:57]}  b6 {[%clk 0:02:48]} 10. Bg2 {[%clk 0:02:56]}  Bb7 {[%clk 0:02:47]} 11. O-O {[%clk 0:02:52]}  Nc5 {[%clk 0:02:45]} 12. Qc2 {[%clk 0:02:44]}  Rc8 {[%clk 0:02:44]} 13. b4 {[%clk 0:02:42]}  Ne6 {[%clk 0:02:44]} 14. Nxe6 {[%clk 0:02:37]}  fxe6 {[%clk 0:02:43]} 15. Qb3 {[%clk 0:02:37]}  Nd7 {[%clk 0:02:38]} 16. Rad1 {[%clk 0:02:29]}  Qc7 {[%clk 0:02:26]} 17. c5 {[%clk 0:02:27]}  bxc5 {[%clk 0:02:25]} 18. Qxe6+ {[%clk 0:02:23]}  Kh8 {[%clk 0:02:24]} 19. Nd5 {[%clk 0:01:52]}  Bxd5 {[%clk 0:02:24]} 20. exd5 {[%clk 0:01:50]}  Ne5 {[%clk 0:02:23]} 21. bxc5 {[%clk 0:01:28]}  dxc5 {[%clk 0:02:05]} 22. Bg5 {[%clk 0:01:14]}  Rce8 {[%clk 0:01:50]} 23. d6 {[%clk 0:01:04]}  exd6 {[%clk 0:01:47]} 24. Qxd6 {[%clk 0:01:05]}  Qa5 {[%clk 0:01:42]} 25. Rc1 {[%clk 0:00:54]}  c4 {[%clk 0:01:36]} 26. f4 {[%clk 0:00:47]}  Nf7 {[%clk 0:01:29]} 27. Qd5 {[%clk 0:00:36]}  Qb6+ {[%clk 0:01:28]} 28. Kh1 {[%clk 0:00:34]}  Nxg5 {[%clk 0:01:28]} 29. fxg5 {[%clk 0:00:35]}  c3 {[%clk 0:01:28]} 30. h4 {[%clk 0:00:25]}  Qe3 {[%clk 0:01:25]} 31. h5 {[%clk 0:00:23]}  Qg3 {[%clk 0:01:24]} 32. h6 {[%clk 0:00:20]}  Be5 {[%clk 0:01:23]} 33. Qxe5+ {[%clk 0:00:11]}  Qxe5 {[%clk 0:01:22]} 0-1


[Site "https://www.chess.com"]

[Event "Titled Tuesday Blitz December 27 Late 2022"]
[White "Phillips, Rene"]
[Black "Pinheiro, Iung Alicio de O."]
[WhiteFideId "2056275"]
[BlackFideId "2104350"]
[WhiteElo "1852"]
[BlackElo "2306"]
[Result "0-1"]
[Round "04"]
[TimeControl "180+2"]
[Date "2022.12.27"]
[WhiteClock "0:00:14"]
[BlackClock "0:01:43"]

1. Nf3 {[%clk 0:01:35]}  c5 {[%clk 0:02:58]} 2. b3 {[%clk 0:01:35]}  d5 {[%clk 0:02:55]} 3. e3 {[%clk 0:01:35]}  a6 {[%clk 0:02:55]} 4. Bb2 {[%clk 0:01:35]}  Nc6 {[%clk 0:02:55]} 5. Be2 {[%clk 0:01:34]}  Bf5 {[%clk 0:02:53]} 6. O-O {[%clk 0:01:33]}  e6 {[%clk 0:02:54]} 7. d3 {[%clk 0:01:32]}  h6 {[%clk 0:02:50]} 8. Nbd2 {[%clk 0:01:29]}  Nf6 {[%clk 0:02:50]} 9. c4 {[%clk 0:01:28]}  Be7 {[%clk 0:02:49]} 10. a3 {[%clk 0:01:27]}  O-O {[%clk 0:02:47]} 11. cxd5 {[%clk 0:01:26]}  exd5 {[%clk 0:02:46]} 12. Rc1 {[%clk 0:01:27]}  Rc8 {[%clk 0:02:37]} 13. Qc2 {[%clk 0:01:12]}  Re8 {[%clk 0:02:31]} 14. e4 {[%clk 0:01:12]}  Bh7 {[%clk 0:02:07]} 15. Rfd1 {[%clk 0:01:01]}  d4 {[%clk 0:01:58]} 16. Nc4 {[%clk 0:00:53]}  Bf8 {[%clk 0:01:52]} 17. e5 {[%clk 0:00:21]}  Nd5 {[%clk 0:01:44]} 18. Qd2 {[%clk 0:00:16]}  b5 {[%clk 0:01:42]} 19. Nd6 {[%clk 0:00:14]}  Bxd6 {[%clk 0:01:42]} 20. exd6 {[%clk 0:00:14]}  Qxd6 {[%clk 0:01:43]} 0-1


[Site "https://www.chess.com"]

[Event "Titled Tuesday Blitz December 27 Late 2022"]
[White "Quinones Garcia, Santiago"]
[Black "Lutz, Igor Oscar"]
[WhiteFideId "4408497"]
[BlackFideId "2110806"]
[WhiteElo "2248"]
[BlackElo "1969"]
[Result "1-0"]
[Round "04"]
[TimeControl "180+2"]
[Date "2022.12.27"]
[WhiteClock "0:01:58"]
[BlackClock "0:00:16"]

1. d4 {[%clk 0:03:00]}  d5 {[%clk 0:02:57]} 2. c4 {[%clk 0:03:00]}  c6 {[%clk 0:02:57]} 3. Nf3 {[%clk 0:03:00]}  Nf6 {[%clk 0:02:58]} 4. e3 {[%clk 0:03:01]}  e6 {[%clk 0:02:58]} 5. b3 {[%clk 0:03:01]}  Nbd7 {[%clk 0:02:53]} 6. Bb2 {[%clk 0:03:01]}  Be7 {[%clk 0:02:52]} 7. Bd3 {[%clk 0:03:00]}  O-O {[%clk 0:02:52]} 8. Qc2 {[%clk 0:02:59]}  b6 {[%clk 0:02:39]} 9. Ne5 {[%clk 0:02:58]}  Bb7 {[%clk 0:02:34]} 10. Nd2 {[%clk 0:02:58]}  g6 {[%clk 0:02:31]} 11. h4 {[%clk 0:02:55]}  dxc4 {[%clk 0:02:30]} 12. bxc4 {[%clk 0:02:55]}  Nxe5 {[%clk 0:02:06]} 13. dxe5 {[%clk 0:02:53]}  Ng4 {[%clk 0:01:51]} 14. h5 {[%clk 0:02:50]}  Kg7 {[%clk 0:00:39]} 15. Ne4 {[%clk 0:02:21]}  c5 {[%clk 0:00:23]} 16. Kf1 {[%clk 0:02:13]}  f6 {[%clk 0:00:15]} 17. exf6+ {[%clk 0:02:01]}  Bxf6 {[%clk 0:00:16]} 18. Nxf6 {[%clk 0:01:59]}  Qxf6 {[%clk 0:00:16]} 19. Bxf6+ {[%clk 0:01:58]} 1-0


[Site "https://www.chess.com"]

[Event "Titled Tuesday Blitz December 27 Late 2022"]
[White "Rangel, Daniel"]
[Black "Kaganskiy, Gleb"]
[WhiteFideId "2124475"]
[BlackFideId "4132025"]
[WhiteElo "2207"]
[BlackElo "2205"]
[Result "0-1"]
[Round "04"]
[TimeControl "180+2"]
[Date "2022.12.27"]
[WhiteClock "0:00:05"]
[BlackClock "0:00:26"]

1. d4 {[%clk 0:03:00]}  Nf6 {[%clk 0:02:58]} 2. c4 {[%clk 0:03:01]}  d6 {[%clk 0:02:58]} 3. Nc3 {[%clk 0:03:01]}  g6 {[%clk 0:02:54]} 4. e4 {[%clk 0:03:00]}  Bg7 {[%clk 0:02:53]} 5. Nf3 {[%clk 0:03:01]}  O-O {[%clk 0:02:52]} 6. Be2 {[%clk 0:03:02]}  Nbd7 {[%clk 0:02:52]} 7. O-O {[%clk 0:03:03]}  e5 {[%clk 0:02:52]} 8. d5 {[%clk 0:03:04]}  Nc5 {[%clk 0:02:51]} 9. Qc2 {[%clk 0:03:04]}  a5 {[%clk 0:02:51]} 10. b3 {[%clk 0:03:05]}  Nfxe4 {[%clk 0:02:48]} 11. Nxe4 {[%clk 0:03:02]}  Nxe4 {[%clk 0:02:48]} 12. Qxe4 {[%clk 0:03:01]}  f5 {[%clk 0:02:48]} 13. Qe3 {[%clk 0:02:46]}  f4 {[%clk 0:02:47]} 14. Qd2 {[%clk 0:02:45]}  e4 {[%clk 0:02:46]} 15. Nd4 {[%clk 0:02:45]}  f3 {[%clk 0:02:46]} 16. Bd1 {[%clk 0:02:29]}  fxg2 {[%clk 0:02:42]} 17. Re1 {[%clk 0:02:29]}  Qh4 {[%clk 0:02:31]} 18. Bb2 {[%clk 0:01:55]}  Be5 {[%clk 0:02:27]} 19. Nf3 {[%clk 0:01:55]}  exf3 {[%clk 0:02:18]} 20. Bxe5 {[%clk 0:01:54]}  dxe5 {[%clk 0:02:17]} 21. Rxe5 {[%clk 0:01:53]}  Bg4 {[%clk 0:02:08]} 22. Qe3 {[%clk 0:01:48]}  Qf6 {[%clk 0:02:00]} 23. Rc1 {[%clk 0:01:39]}  a4 {[%clk 0:01:55]} 24. Bc2 {[%clk 0:01:27]}  axb3 {[%clk 0:01:48]} 25. Bxb3 {[%clk 0:01:28]}  b6 {[%clk 0:01:44]} 26. Re1 {[%clk 0:01:27]}  Kh8 {[%clk 0:01:43]} 27. Re7 {[%clk 0:01:10]}  Rf7 {[%clk 0:01:40]} 28. Re5 {[%clk 0:00:53]}  Raf8 {[%clk 0:01:34]} 29. c5 {[%clk 0:00:44]}  bxc5 {[%clk 0:01:33]} 30. Qxc5 {[%clk 0:00:45]}  Qd6 {[%clk 0:01:31]} 31. Qd4 {[%clk 0:00:43]}  Rf4 {[%clk 0:01:29]} 32. Qc3 {[%clk 0:00:32]}  Kg8 {[%clk 0:01:27]} 33. Re7 {[%clk 0:00:29]}  R4f7 {[%clk 0:01:22]} 34. R7e3 {[%clk 0:00:21]}  h5 {[%clk 0:01:18]} 35. Qd2 {[%clk 0:00:16]}  Kh7 {[%clk 0:01:17]} 36. Qd3 {[%clk 0:00:15]}  Rg8 {[%clk 0:01:14]} 37. Qd4 {[%clk 0:00:11]}  Rgg7 {[%clk 0:01:13]} 38. Bc2 {[%clk 0:00:09]}  Re7 {[%clk 0:01:13]} 39. Qd2 {[%clk 0:00:05]}  Rxe3 {[%clk 0:01:11]} 40. Qxe3 {[%clk 0:00:05]}  Qxd5 {[%clk 0:01:11]} 41. Bb3 {[%clk 0:00:05]}  Qf7 {[%clk 0:01:08]} 42. Qc5 {[%clk 0:00:05]}  Qf5 {[%clk 0:01:07]} 43. Qc3 {[%clk 0:00:05]}  Qd7 {[%clk 0:01:04]} 44. Qc4 {[%clk 0:00:05]}  Re7 {[%clk 0:00:51]} 45. Qg8+ {[%clk 0:00:05]}  Kh6 {[%clk 0:00:51]} 46. Qf8+ {[%clk 0:00:05]}  Rg7 {[%clk 0:00:49]} 47. Qf4+ {[%clk 0:00:06]}  Kh7 {[%clk 0:00:48]} 48. Qc4 {[%clk 0:00:07]}  Qd2 {[%clk 0:00:43]} 49. Qe4 {[%clk 0:00:06]}  Bf5 {[%clk 0:00:39]} 50. Qe8 {[%clk 0:00:06]}  Bh3 {[%clk 0:00:26]} 51. Qe5 {[%clk 0:00:06]}  Qd3 {[%clk 0:00:25]} 52. Qe8 {[%clk 0:00:06]}  Qf1+ {[%clk 0:00:25]} 53. Rxf1 {[%clk 0:00:05]}  gxf1=Q# {[%clk 0:00:26]} 0-1


[Site "https://www.chess.com"]

[Event "Titled Tuesday Blitz December 27 Late 2022"]
[White "Rasulov, Vugar"]
[Black "Klose, Eli"]
[WhiteFideId "13402390"]
[BlackFideId "16242955"]
[WhiteElo "2523"]
[BlackElo "1519"]
[Result "1-0"]
[Round "04"]
[TimeControl "180+2"]
[Date "2022.12.27"]
[WhiteClock "0:00:48"]
[BlackClock "0:00:34"]

1. h3 {[%clk 0:03:00]}  h6 {[%clk 0:02:57]} 2. g4 {[%clk 0:03:01]}  d5 {[%clk 0:02:56]} 3. Bg2 {[%clk 0:03:01]}  c5 {[%clk 0:02:56]} 4. c4 {[%clk 0:03:01]}  d4 {[%clk 0:02:56]} 5. d3 {[%clk 0:03:01]}  Nc6 {[%clk 0:02:56]} 6. a3 {[%clk 0:02:58]}  a5 {[%clk 0:02:55]} 7. Nf3 {[%clk 0:02:54]}  e5 {[%clk 0:02:54]} 8. Nbd2 {[%clk 0:02:51]}  Nf6 {[%clk 0:02:53]} 9. Qc2 {[%clk 0:02:44]}  Bd6 {[%clk 0:02:52]} 10. b3 {[%clk 0:02:39]}  Be6 {[%clk 0:02:49]} 11. Bb2 {[%clk 0:02:39]}  Qc7 {[%clk 0:02:49]} 12. Nh4 {[%clk 0:02:36]}  Nd7 {[%clk 0:02:38]} 13. Ne4 {[%clk 0:02:32]}  Be7 {[%clk 0:02:38]} 14. Nf5 {[%clk 0:02:33]}  Bf8 {[%clk 0:02:36]} 15. Nfg3 {[%clk 0:02:26]}  g6 {[%clk 0:02:36]} 16. g5 {[%clk 0:02:24]}  h5 {[%clk 0:02:32]} 17. h4 {[%clk 0:02:23]}  Be7 {[%clk 0:02:31]} 18. Bc1 {[%clk 0:02:15]}  a4 {[%clk 0:02:22]} 19. bxa4 {[%clk 0:02:15]}  Qa5+ {[%clk 0:02:20]} 20. Bd2 {[%clk 0:02:14]}  Qxa4 {[%clk 0:02:20]} 21. Qb2 {[%clk 0:02:14]}  Qa6 {[%clk 0:02:19]} 22. O-O {[%clk 0:02:10]}  O-O {[%clk 0:02:17]} 23. f4 {[%clk 0:01:59]}  exf4 {[%clk 0:02:15]} 24. Bxf4 {[%clk 0:02:00]}  Nde5 {[%clk 0:02:12]} 25. Nf6+ {[%clk 0:01:50]}  Bxf6 {[%clk 0:02:09]} 26. gxf6 {[%clk 0:01:51]}  Ng4 {[%clk 0:02:08]} 27. Bg5 {[%clk 0:01:45]}  Rab8 {[%clk 0:02:06]} 28. Qd2 {[%clk 0:01:42]}  b5 {[%clk 0:02:04]} 29. cxb5 {[%clk 0:01:38]}  Rxb5 {[%clk 0:02:03]} 30. Ne4 {[%clk 0:01:36]}  Bd5 {[%clk 0:01:58]} 31. Rfc1 {[%clk 0:01:28]}  Bxe4 {[%clk 0:01:56]} 32. Bxe4 {[%clk 0:01:29]}  Nce5 {[%clk 0:01:55]} 33. Qf4 {[%clk 0:01:29]}  Rb2 {[%clk 0:01:34]} 34. Rxc5 {[%clk 0:01:26]}  Rxe2 {[%clk 0:01:31]} 35. Rxe5 {[%clk 0:01:25]}  Nxe5 {[%clk 0:01:32]} 36. Qxe5 {[%clk 0:01:26]}  Qxd3 {[%clk 0:01:30]} 37. Bxd3 {[%clk 0:01:25]}  Rxe5 {[%clk 0:01:26]} 38. a4 {[%clk 0:01:26]}  Ra8 {[%clk 0:01:24]} 39. Kf2 {[%clk 0:01:20]}  Rea5 {[%clk 0:01:21]} 40. Bc2 {[%clk 0:01:20]}  Rc8 {[%clk 0:01:18]} 41. Ra2 {[%clk 0:01:15]}  Rac5 {[%clk 0:01:04]} 42. Bd3 {[%clk 0:01:14]}  Rc3 {[%clk 0:01:03]} 43. Ke2 {[%clk 0:01:14]}  Rb8 {[%clk 0:00:57]} 44. a5 {[%clk 0:01:10]}  Rbb3 {[%clk 0:00:57]} 45. a6 {[%clk 0:01:06]}  Ra3 {[%clk 0:00:53]} 46. Rxa3 {[%clk 0:01:04]}  Rxa3 {[%clk 0:00:54]} 47. Bc1 {[%clk 0:01:00]}  Ra5 {[%clk 0:00:42]} 48. Kf3 {[%clk 0:00:58]}  Kf8 {[%clk 0:00:41]} 49. Ke4 {[%clk 0:00:59]}  Ke8 {[%clk 0:00:41]} 50. Bd2 {[%clk 0:00:58]}  Ra2 {[%clk 0:00:40]} 51. Bb4 {[%clk 0:00:55]}  Kd7 {[%clk 0:00:40]} 52. Kxd4 {[%clk 0:00:55]}  Ra4 {[%clk 0:00:37]} 53. Kc5 {[%clk 0:00:55]}  Ke6 {[%clk 0:00:37]} 54. Bc3 {[%clk 0:00:48]}  Rxh4 {[%clk 0:00:34]} 55. Bc4+ {[%clk 0:00:48]} 1-0


[Site "https://www.chess.com"]